bitfinex/quotes_SOLUSD_20230702
["timestamp","ask_amount","ask_price","bid_price","bid_amount"]
[1688264607060,22.576,18.737,18.721,22.594]
[1688264608064,22.576,18.737,18.726,22.588]
[1688264608253,22.576,18.737,18.727,55.0]
[1688264608453,22.576,18.737,18.724,22.59]
[1688264608676,22.576,18.737,18.719,58.173]
[1688264608855,22.576,18.737,18.72,20.0]
[1688264609659,22.576,18.737,18.725,22.589]
[1688264609864,22.576,18.737,18.726,55.0]
[1688264610068,22.576,18.737,18.726,77.588]
[1688264610573,22.576,18.737,18.723,22.592]
[1688264611973,22.576,18.737,18.724,77.591]
[1688264613681,22.576,18.737,18.724,55.0]
[1688264614578,22.576,18.737,18.724,77.59]
[1688264618280,30.93270871,18.737,18.714,106.172]
[1688264618581,75.0,18.736,18.714,22.603]
[1688264618785,186.816,18.73,18.714,22.603]
[1688264619971,186.816,18.73,18.717,22.599]
[1688264620178,186.816,18.73,18.718,55.0]
[1688264622078,80.727,18.73,18.718,55.0]
[1688264626672,8.33577045,18.729,18.709,55.0]
[1688264626874,8.33577045,18.729,18.692,99.2443]
[1688264626875,33.96,18.72,18.692,99.2443]
[1688264627165,33.96,18.72,18.692,121.8733]
[1688264627166,186.989,18.713,18.692,121.8733]
[1688264627376,33.96,18.71,18.686,107.019726]
[1688264627569,187.082,18.703,18.687,22.635]
[1688264627769,80.842,18.703,18.687,80.91]
[1688264628284,80.842,18.703,18.688,20.0]
[1688264628488,80.842,18.703,18.692,20.129]
[1688264629480,22.616,18.703,18.692,20.129]
[1688264631275,22.616,18.703,18.688,20.0]
[1688264631479,22.616,18.703,18.688,22.634]
[1688264631783,22.616,18.703,18.693,22.628]
[1688264632985,22.616,18.703,18.694,55.0]
[1688264633866,22.616,18.703,18.691,22.63]
[1688264634065,22.616,18.703,18.689,22.632]
[1688264634066,128.855,18.703,18.689,22.632]
[1688264634264,22.616,18.703,18.693,22.627]
[1688264634481,22.616,18.703,18.691,22.63]
[1688264634789,22.616,18.703,18.69,20.0]
[1688264635673,22.616,18.703,18.69,22.632]
[1688264635969,22.616,18.703,18.694,22.626]
[1688264636272,22.616,18.703,18.694,22.627]
[1688264636469,22.616,18.703,18.693,22.628]
[1688264637489,22.616,18.703,18.694,55.0]
[1688264637691,22.616,18.703,18.696,22.624]
[1688264637877,22.616,18.703,18.694,55.0]
[1688264637878,22.616,18.703,18.697,55.0]
[1688264638079,22.616,18.703,18.695,22.626]
[1688264638281,22.616,18.703,18.696,55.0]
[1688264638484,22.616,18.703,18.696,77.624]
[1688264638969,22.616,18.703,18.696,55.0]
[1688264639178,80.841,18.703,18.696,55.0]
[1688264639593,80.841,18.703,18.693,22.628]
[1688264639772,80.841,18.703,18.694,55.0]
[1688264639976,80.841,18.703,18.694,77.627]
[1688264640290,22.615,18.704,18.694,77.627]
[1688264640496,22.614,18.705,18.694,77.627]
[1688264642397,58.208,18.713,18.695,20.0]
[1688264642588,33.9,18.72,18.7,22.619]
[1688264642810,22.602,18.716,18.701,75.0]
[1688264642999,22.602,18.716,18.705,22.613]
[1688264643290,22.602,18.716,18.693,58.255]
[1688264643291,137.16649465,18.716,18.693,58.255]
[1688264643591,137.16649465,18.716,18.691,106.304]
[1688264643592,33.96,18.71,18.694,22.626]
[1688264643797,80.833,18.706,18.694,22.626]
[1688264645082,22.614,18.706,18.695,55.0]
[1688264645398,22.614,18.706,18.698,22.622]
[1688264645581,22.614,18.706,18.699,55.0]
[1688264645777,22.614,18.706,18.7,22.62]
[1688264645976,22.614,18.706,18.701,55.0]
[1688264646594,58.199,18.712,18.701,77.618]
[1688264647477,22.61,18.709,18.701,55.0]
[1688264647695,22.61,18.709,18.7,55.0]
[1688264647897,22.61,18.709,18.701,20.0]
[1688264648391,22.61,18.709,18.701,42.618]
[1688264648899,22.61,18.709,18.701,20.0]
[1688264649095,22.61,18.709,18.702,55.0]
[1688264649482,22.61,18.709,18.702,77.617]
[1688264649703,22.61,18.709,18.702,55.0]
[1688264650878,22.61,18.709,18.693,58.256]
[1688264651085,22.61,18.709,18.69,33.96]
[1688264651304,22.61,18.709,18.691,20.0]
[1688264651684,22.61,18.709,18.696,22.624]
[1688264652387,22.61,18.709,18.7,22.619]
[1688264652600,22.61,18.709,18.701,55.0]
[1688264654506,22.61,18.709,18.691,58.262]
[1688264655079,113.183,18.717,18.694,128.916]
[1688264655296,22.603,18.715,18.7,33.68]
[1688264655506,22.603,18.715,18.701,97.617]
[1688264655796,22.603,18.715,18.701,75.0]
[1688264655982,22.603,18.715,18.701,97.619]
[1688264656400,20.0,18.714,18.698,22.622]
[1688264656706,20.0,18.714,18.692,58.258]
[1688264656707,187.014,18.71,18.699,55.0]
[1688264657217,80.813,18.71,18.699,77.621]
[1688264658489,22.608,18.71,18.699,77.621]
[1688264659088,22.608,18.71,18.69,33.96]
[1688264659289,64.96749465,18.71,18.691,42.631]
[1688264659586,80.839,18.704,18.691,42.631]
[1688264659987,22.615,18.704,18.691,42.631]
[1688264660603,22.615,18.704,18.692,55.0]
[1688264660787,22.615,18.704,18.695,22.625]
[1688264660987,22.615,18.704,18.696,55.0]
[1688264661188,22.615,18.704,18.698,22.622]
[1688264661488,58.204,18.71,18.699,55.0]
[1688264661489,22.613,18.706,18.699,55.0]
[1688264661692,22.613,18.706,18.701,22.618]
[1688264661893,22.613,18.706,18.702,55.0]
[1688264662992,80.829,18.706,18.702,55.0]
[1688264663805,22.613,18.706,18.702,55.0]
[1688264664594,22.613,18.706,18.691,20.0]
[1688264664807,22.613,18.706,18.692,22.629]
[1688264664808,187.051,18.706,18.692,22.629]
[1688264665006,22.613,18.706,18.693,22.628]
[1688264665316,58.195,18.713,18.693,22.628]
[1688264665487,22.613,18.706,18.693,22.628]
[1688264666113,22.613,18.706,18.694,55.0]
[1688264666310,22.613,18.706,18.696,22.624]
[1688264666603,22.613,18.706,18.688,106.319]
[1688264666604,22.613,18.706,18.687,20.0]
[1688264666811,22.613,18.706,18.69,22.631]
[1688264667198,22.613,18.706,18.691,20.0]
[1688264667516,22.613,18.706,18.693,22.628]
[1688264668010,22.613,18.706,18.694,55.0]
[1688264668205,22.613,18.706,18.694,77.626]
[1688264671200,22.613,18.706,18.694,22.626]
[1688264672916,22.613,18.706,18.697,22.623]
[1688264673098,22.613,18.706,18.698,77.622]
[1688264673291,22.613,18.706,18.698,22.622]
[1688264673495,22.613,18.706,18.699,55.0]
[1688264673892,22.613,18.706,18.699,77.621]
[1688264674418,22.611,18.707,18.699,77.621]
[1688264674616,58.198,18.712,18.699,77.621]
[1688264674617,22.61,18.709,18.699,77.621]
[1688264674798,22.61,18.709,18.7,20.0]
[1688264674998,22.61,18.709,18.702,22.617]
[1688264675198,22.61,18.709,18.703,55.0]
[1688264675815,22.61,18.709,18.681,53.27]
[1688264675816,22.61,18.709,18.698,22.622]
[1688264676023,22.61,18.709,18.697,22.623]
[1688264676198,22.61,18.709,18.696,22.625]
[1688264677922,22.61,18.709,18.695,22.626]
[1688264678912,22.61,18.709,18.696,55.0]
[1688264679103,22.61,18.709,18.695,22.626]
[1688264679307,80.848,18.702,18.69,22.632]
[1688264679507,80.848,18.702,18.691,42.63]
[1688264679815,80.848,18.702,18.691,20.0]
[1688264680425,80.848,18.702,18.691,22.631]
[1688264681301,22.618,18.702,18.691,22.631]
[1688264681717,80.847,18.702,18.685,20.0]
[1688264681919,80.847,18.702,18.67,67.89]
[1688264681920,33.77,18.7,18.67,67.89]
[1688264682133,80.877,18.695,18.683,22.64]
[1688264683227,80.877,18.695,18.682,22.641]
[1688264683401,80.877,18.695,18.683,55.0]
[1688264683605,80.877,18.695,18.682,22.641]
[1688264685206,80.877,18.695,18.672,97.3076]
[1688264685406,55.0,18.694,18.674,58.315]
[1688264685608,22.633,18.689,18.678,22.645]
[1688264685824,22.633,18.689,18.679,20.0]
[1688264686025,22.633,18.689,18.682,22.641]
[1688264686533,22.633,18.689,18.674,106.402]
[1688264686534,22.633,18.689,18.674,22.65]
[1688264686728,22.633,18.689,18.672,22.653]
[1688264687026,80.927,18.684,18.672,22.653]
[1688264687429,22.64,18.684,18.672,22.653]
[1688264688310,22.64,18.684,18.676,22.649]
[1688264688504,22.64,18.684,18.674,22.651]
[1688264688721,22.64,18.684,18.668,58.333]
[1688264688935,22.64,18.684,18.669,20.0]
[1688264689822,22.64,18.684,18.673,22.652]
[1688264690010,22.64,18.684,18.674,55.0]
[1688264691735,22.64,18.684,18.672,22.653]
[1688264692030,22.64,18.684,18.673,55.0]
[1688264692236,22.64,18.684,18.674,22.651]
[1688264692432,22.64,18.684,18.675,55.0]
[1688264692728,128.987,18.684,18.669,20.0]
[1688264693034,128.987,18.684,18.665,20.0]
[1688264693332,128.987,18.684,18.668,22.658]
[1688264693535,128.987,18.684,18.669,20.0]
[1688264693832,128.987,18.684,18.67,22.656]
[1688264694019,128.987,18.684,18.671,55.0]
[1688264694420,128.987,18.684,18.669,20.0]
[1688264694713,80.966,18.675,18.662,22.666]
[1688264695927,80.966,18.675,18.663,77.664]
[1688264698630,80.966,18.675,18.663,55.0]
[1688264698831,89.3655021,18.675,18.659,22.668]
[1688264699033,89.3655021,18.675,18.66,20.0]
[1688264699213,8.3995021,18.674,18.656,22.672]
[1688264699420,187.426,18.669,18.656,22.672]
[1688264700338,187.426,18.669,18.648,58.397]
[1688264700647,187.426,18.669,18.649,20.0]
[1688264700941,187.426,18.669,18.655,22.674]
[1688264701237,80.991,18.669,18.654,22.675]
[1688264701933,89.3905021,18.669,18.647,58.4]
[1688264702119,80.991,18.669,18.653,22.677]
[1688264703214,80.991,18.669,18.658,22.67]
[1688264703629,80.991,18.669,18.654,55.0]
[1688264703944,80.991,18.669,18.654,77.675]
[1688264706525,33.86,18.68,18.654,77.675]
[1688264706822,22.653,18.673,18.665,22.662]
[1688264707031,22.653,18.673,18.666,77.66]
[1688264707441,22.653,18.673,18.666,55.0]
[1688264708135,22.649,18.676,18.666,77.661]
[1688264708443,22.648,18.678,18.666,77.661]
[1688264709525,80.951,18.678,18.666,77.661]
[1688264711131,22.645,18.68,18.666,77.661]
[1688264711443,22.644,18.68,18.666,184.111]
[1688264711824,22.644,18.68,18.666,284.0346]
[1688264712522,22.644,18.68,18.67,56.335]
[1688264712727,22.644,18.68,18.671,75.0]
[1688264713137,22.644,18.68,18.667,22.66]
[1688264713339,129.014,18.68,18.666,22.661]
[1688264715647,129.014,18.68,18.667,55.0]
[1688264716344,129.014,18.68,18.668,20.0]
[1688264716345,22.644,18.68,18.668,20.0]
[1688264716527,22.643,18.681,18.673,22.653]
[1688264716734,22.642,18.683,18.676,22.648]
[1688264717136,22.642,18.683,18.677,55.0]
[1688264717527,22.642,18.683,18.677,77.648]
[1688264717765,58.254,18.694,18.677,135.955]
[1688264717941,80.892,18.692,18.678,20.0]
[1688264718140,80.892,18.692,18.68,22.644]
[1688264718445,80.892,18.692,18.681,20.0]
[1688264718752,80.892,18.692,18.682,22.641]
[1688264719839,22.628,18.694,18.682,80.932]
[1688264720045,33.96,18.7,18.683,55.0]
[1688264720241,22.625,18.696,18.688,22.634]
[1688264720444,22.625,18.696,18.683,22.64]
[1688264720739,31.0245021,18.696,18.683,22.64]
[1688264720937,8.3995021,18.695,18.683,22.64]
[1688264721146,8.3995021,18.695,18.684,55.0]
[1688264721147,22.63,18.692,18.684,55.0]
[1688264721452,22.628,18.694,18.686,22.636]
[1688264723357,22.628,18.694,18.673,106.407]
[1688264723358,20.0,18.693,18.673,106.407]
[1688264723549,20.0,18.693,18.671,144.5377]
[1688264723550,80.909,18.688,18.671,144.5377]
[1688264723735,22.643,18.681,18.673,22.652]
[1688264724554,22.643,18.681,18.671,22.654]
[1688264726455,22.643,18.681,18.672,55.0]
[1688264726762,22.643,18.681,18.672,77.653]
[1688264726945,22.643,18.681,18.672,22.653]
[1688264728151,22.643,18.681,18.67,22.655]
[1688264728350,22.643,18.681,18.671,20.0]
[1688264728547,22.643,18.681,18.661,202.8624]
[1688264728751,22.643,18.681,18.664,22.663]
[1688264728752,117.3595021,18.68,18.664,22.663]
[1688264729064,22.65,18.676,18.664,22.663]
[1688264729954,22.648,18.677,18.664,22.663]
[1688264730137,22.648,18.677,18.668,22.658]
[1688264731150,22.648,18.677,18.665,55.0]
[1688264731354,22.648,18.677,18.664,55.0]
[1688264731656,22.648,18.677,18.664,77.663]
[1688264732545,22.648,18.677,18.663,22.665]
[1688264733753,31.0475021,18.677,18.663,22.665]
[1688264734272,8.3995021,18.676,18.642,53.27]
[1688264734562,8.3995021,18.676,18.653,22.677]
[1688264734563,187.429,18.669,18.653,22.677]
[1688264735144,22.664,18.664,18.653,22.677]
[1688264735558,22.664,18.664,18.653,33.51419922]
[1688264736062,87.74,18.69,18.658,22.67]
[1688264736272,58.305,18.678,18.66,33.96]
[1688264736560,22.65,18.675,18.663,22.664]
[1688264736951,22.65,18.675,18.662,22.666]
[1688264737155,137.4475021,18.675,18.66,22.667]
[1688264737359,149.7878121,18.675,18.661,75.0]
[1688264737656,34.99031,18.675,18.661,97.667]
[1688264737852,22.65,18.675,18.661,97.667]
[1688264743563,187.361,18.675,18.661,42.667]
[1688264745060,195.7605021,18.675,18.662,55.0]
[1688264745468,195.7605021,18.675,18.662,77.666]
[1688264745675,187.361,18.675,18.662,77.666]
[1688264745853,187.361,18.675,18.661,20.0]
[1688264746158,22.658,18.669,18.661,22.667]
[1688264746770,22.658,18.669,18.66,22.668]
[1688264746952,22.658,18.669,18.661,20.0]
[1688264747856,22.658,18.669,18.656,22.673]
[1688264747857,129.091,18.669,18.656,22.673]
[1688264748553,22.658,18.669,18.656,22.673]
[1688264749078,22.658,18.669,18.657,55.0]
[1688264750056,22.658,18.669,18.657,77.671]
[1688264750666,31.0575021,18.669,18.657,77.671]
[1688264751763,8.3995021,18.668,18.651,88.977]
[1688264752070,81.014,18.664,18.652,22.678]
[1688264753353,81.014,18.664,18.642,22.69]
[1688264753354,22.676,18.654,18.642,22.69]
[1688264754457,22.676,18.654,18.643,55.0]
[1688264754661,22.676,18.654,18.644,22.687]
[1688264756969,22.676,18.654,18.645,55.0]
[1688264757174,22.676,18.654,18.646,22.685]
[1688264758478,22.676,18.654,18.647,55.0]
[1688264758678,22.676,18.654,18.647,77.683]
[1688264759780,22.676,18.654,18.643,92.9801]
[1688264759960,22.676,18.654,18.613,54.93681207]
[1688264759961,22.676,18.654,18.644,22.688]
[1688264760168,22.676,18.654,18.644,33.52519922]
[1688264761077,22.676,18.654,18.644,22.688]
[1688264762476,22.676,18.654,18.645,77.686]
[1688264763879,22.676,18.654,18.643,22.688]
[1688264764084,22.676,18.654,18.644,55.0]
[1688264764985,22.676,18.654,18.636,117.45319922]
[1688264765172,55.0,18.653,18.632,202.9909]
[1688264765372,22.684,18.647,18.638,22.694]
[1688264766186,22.683,18.649,18.642,22.69]
[1688264766376,22.683,18.649,18.643,77.688]
[1688264767565,22.68,18.65,18.643,77.688]
[1688264767773,22.68,18.65,18.643,88.52519922]
[1688264768685,22.68,18.65,18.643,77.688]
[1688264769776,22.68,18.65,18.643,22.688]
[1688264769984,22.68,18.65,18.644,77.687]
[1688264771666,58.373,18.656,18.644,77.687]
[1688264771869,22.679,18.652,18.644,77.687]
[1688264776586,22.679,18.652,18.644,55.0]
[1688264776786,22.679,18.652,18.643,22.689]
[1688264776787,22.679,18.652,18.641,95.8301]
[1688264776990,22.679,18.652,18.642,55.0]
[1688264778487,22.679,18.652,18.642,77.69]
[1688264779490,22.679,18.652,18.641,95.8301]
[1688264779992,22.679,18.652,18.641,118.5211]
[1688264781498,75.463,18.66,18.645,129.257]
[1688264781499,58.373,18.66,18.645,129.257]
[1688264781679,2.99992183,18.682,18.646,75.0]
[1688264781680,96.1689,18.678,18.646,75.0]
[1688264781877,58.316,18.674,18.652,187.593]
[1688264782081,58.316,18.674,18.659,22.669]
[1688264782082,22.658,18.669,18.659,22.669]
[1688264782277,22.656,18.67,18.659,22.669]
[1688264782484,22.658,18.669,18.659,22.669]
[1688264782876,80.989,18.669,18.659,22.668]
[1688264783078,80.989,18.669,18.654,22.675]
[1688264783275,22.664,18.664,18.653,108.8045]
[1688264783498,22.664,18.664,18.654,55.0]
[1688264783687,22.664,18.664,18.657,22.672]
[1688264783886,12.40649,18.668,18.657,22.672]
[1688264784190,55.140569,18.702,18.657,22.672]
[1688264784397,22.659,18.668,18.653,22.677]
[1688264784579,81.027,18.661,18.64,106.597]
[1688264784778,81.027,18.661,18.63,17.09]
[1688264784779,17.09,18.66,18.63,17.09]
[1688264784983,81.065,18.652,18.639,22.694]
[1688264785194,81.065,18.652,18.638,22.695]
[1688264785382,81.065,18.652,18.639,22.693]
[1688264786092,129.236,18.648,18.633,99.7794]
[1688264786394,129.236,18.648,18.633,122.4804]
[1688264786897,129.236,18.648,18.633,22.701]
[1688264787289,22.684,18.648,18.633,22.701]
[1688264788082,129.236,18.648,18.633,22.701]
[1688264788492,129.236,18.648,18.637,22.696]
[1688264788897,129.236,18.648,18.631,58.449]
[1688264789087,129.236,18.648,18.633,22.7]
[1688264789491,22.689,18.643,18.633,22.7]
[1688264790294,17.09,18.66,18.633,22.7]
[1688264790501,81.069,18.651,18.634,55.0]
[1688264790684,22.684,18.648,18.638,22.694]
[1688264790884,22.684,18.648,18.642,22.69]
[1688264791897,22.684,18.648,18.64,22.692]
[1688264792483,22.684,18.648,18.639,22.694]
[1688264793101,81.081,18.648,18.636,22.697]
[1688264793288,81.081,18.648,18.637,55.0]
[1688264793481,81.081,18.648,18.635,90.2795]
[1688264793689,81.081,18.648,18.634,22.699]
[1688264795086,22.684,18.648,18.634,22.699]
[1688264795587,22.684,18.648,18.635,55.0]
[1688264795788,22.684,18.648,18.638,22.694]
[1688264795989,22.684,18.648,18.639,55.0]
[1688264796286,106.498,18.658,18.641,22.691]
[1688264796496,22.677,18.653,18.646,22.685]
[1688264799594,22.677,18.653,18.642,55.0]
[1688264800912,22.677,18.653,18.646,22.685]
[1688264801509,55.0,18.66,18.647,55.0]
[1688264801811,28.02271739,18.666,18.653,187.578]
[1688264802009,28.02271739,18.666,18.654,55.0]
[1688264802205,50.68471739,18.666,18.657,22.671]
[1688264802511,50.68471739,18.666,18.658,55.0]
[1688264802809,22.662,18.666,18.66,22.668]
[1688264804510,113.32,18.673,18.66,22.668]
[1688264804709,8.41102402,18.676,18.661,55.0]
[1688264804710,22.656,18.671,18.661,55.0]
[1688264805014,22.656,18.671,18.665,22.662]
[1688264805306,22.656,18.671,18.659,58.361]
[1688264805509,31.06702402,18.671,18.651,106.531]
[1688264805714,31.06702402,18.671,18.638,3.0]
[1688264805715,89.39202402,18.671,18.652,55.0]
[1688264805900,106.418,18.672,18.654,22.674]
[1688264805901,22.663,18.665,18.654,22.674]
[1688264806101,22.663,18.665,18.658,22.671]
[1688264806313,22.661,18.667,18.658,22.671]
[1688264806518,8.41102402,18.67,18.659,55.0]
[1688264806719,424.44949827,18.693,18.659,55.0]
[1688264806720,106.374,18.68,18.662,22.666]
[1688264806906,8.41102402,18.679,18.662,22.666]
[1688264807309,8.41102402,18.679,18.663,55.0]
[1688264807631,22.651,18.675,18.667,22.659]
[1688264807799,22.651,18.675,18.663,55.0]
[1688264808001,22.651,18.675,18.657,106.496]
[1688264808002,31.06202402,18.675,18.657,106.496]
[1688264808217,31.06202402,18.675,18.663,22.664]
[1688264810116,22.651,18.675,18.663,22.664]
[1688264810297,22.651,18.675,18.667,22.659]
[1688264810909,22.651,18.675,18.659,98.1288]
[1688264811111,31.06202402,18.675,18.66,75.0]
[1688264811902,31.06202402,18.675,18.664,22.663]
[1688264813723,22.651,18.675,18.662,22.665]
[1688264814017,83.41102402,18.674,18.653,58.38]
[1688264814316,22.659,18.668,18.657,22.671]
[1688264817609,22.659,18.668,18.66,22.668]
[1688264818603,22.659,18.668,18.651,205.8932]
[1688264818604,22.659,18.668,18.655,22.674]
[1688264818809,22.659,18.668,18.653,22.676]
[1688264820014,22.659,18.668,18.654,55.0]
[1688264820220,22.659,18.668,18.655,22.674]
[1688264821713,22.659,18.668,18.651,99.3602]
[1688264822016,22.659,18.668,18.652,55.0]
[1688264822218,22.659,18.668,18.653,22.676]
[1688264822427,22.659,18.668,18.654,55.0]
[1688264822726,22.659,18.668,18.656,22.673]
[1688264824228,22.659,18.668,18.651,157.7462]
[1688264824229,22.659,18.668,18.651,99.3602]
[1688264824426,22.659,18.668,18.655,22.674]
[1688264824626,22.659,18.668,18.657,22.671]
[1688264825013,22.659,18.668,18.655,22.673]
[1688264826030,22.659,18.668,18.656,55.0]
[1688264826327,22.659,18.668,18.658,22.67]
[1688264826911,22.659,18.668,18.656,55.0]
[1688264827113,22.659,18.668,18.653,22.677]
[1688264827319,22.665,18.663,18.653,22.677]
[1688264829511,22.665,18.663,18.645,93.997]
[1688264829512,55.0,18.662,18.645,22.686]
[1688264829713,81.041,18.657,18.644,22.687]
[1688264831718,81.041,18.657,18.645,55.0]
[1688264832538,81.041,18.657,18.642,97.8369]
[1688264832720,81.041,18.657,18.643,55.0]
[1688264833044,81.041,18.657,18.645,22.686]
[1688264833933,22.672,18.657,18.646,55.0]
[1688264834229,58.342,18.666,18.649,22.681]
[1688264834438,22.667,18.662,18.65,75.0]
[1688264834622,22.667,18.662,18.651,22.678]
[1688264835529,22.667,18.662,18.652,55.0]
[1688264835741,22.667,18.662,18.655,22.674]
[1688264837955,22.667,18.662,18.652,55.0]
[1688264838240,22.667,18.662,18.652,22.678]
[1688264841444,106.426,18.671,18.652,22.678]
[1688264841445,58.327,18.671,18.653,55.0]
[1688264841649,22.66,18.667,18.659,22.67]
[1688264842343,58.295,18.681,18.66,109.19]
[1688264842639,22.646,18.679,18.668,22.658]
[1688264842820,80.946,18.679,18.66,109.19]
[1688264843023,93.35249,18.679,18.66,109.19]
[1688264843250,8.41102402,18.678,18.663,22.664]
[1688264843535,8.41102402,18.678,18.66,109.19]
[1688264843536,22.652,18.674,18.665,22.662]
[1688264848238,22.652,18.674,18.664,22.663]
[1688264848438,22.652,18.674,18.66,42.667]
[1688264848639,55.0,18.673,18.66,42.667]
[1688264848831,22.657,18.67,18.66,42.667]
[1688264849319,22.657,18.67,18.653,58.38]
[1688264849320,31.06802402,18.67,18.653,58.38]
[1688264849524,31.06802402,18.67,18.655,94.0743]
[1688264849725,31.06802402,18.67,18.653,58.38]
[1688264849726,22.663,18.665,18.656,22.672]
[1688264851054,22.663,18.665,18.657,55.0]
[1688264851232,22.663,18.665,18.657,77.671]
[1688264854433,58.325,18.672,18.657,77.671]
[1688264854634,22.658,18.669,18.657,77.671]
[1688264858350,22.658,18.669,18.658,20.0]
[1688264858539,22.658,18.669,18.661,22.667]
[1688264858859,22.658,18.669,18.662,55.0]
[1688264859350,22.658,18.669,18.662,77.666]
[1688264859853,22.658,18.669,18.662,22.666]
[1688264860347,22.658,18.669,18.658,119.9947]
[1688264860538,22.658,18.669,18.659,55.0]
[1688264860741,22.658,18.669,18.66,20.0]
[1688264861141,22.658,18.669,18.651,58.387]
[1688264861344,22.658,18.669,18.64,34.0]
[1688264861345,55.0,18.668,18.654,22.675]
[1688264861557,22.664,18.664,18.654,22.675]
[1688264862933,22.664,18.664,18.651,22.678]
[1688264863140,22.664,18.664,18.652,55.0]
[1688264863457,22.664,18.664,18.653,22.677]
[1688264864656,22.664,18.664,18.649,99.4991]
[1688264864657,129.125,18.664,18.649,99.4991]
[1688264864866,129.125,18.664,18.65,75.0]
[1688264865158,129.125,18.664,18.651,22.679]
[1688264865348,129.125,18.664,18.652,55.0]
[1688264865548,129.125,18.664,18.652,77.678]
[1688264866457,129.125,18.664,18.652,22.678]
[1688264866657,129.125,18.664,18.65,20.0]
[1688264866858,129.125,18.664,18.651,55.0]
[1688264867260,22.664,18.664,18.651,77.679]
[1688264867852,22.663,18.665,18.651,77.679]
[1688264868164,22.663,18.665,18.655,22.673]
[1688264868345,22.663,18.665,18.656,55.0]
[1688264868665,22.663,18.665,18.656,77.672]
[1688264872065,22.659,18.669,18.656,77.672]
[1688264872247,22.659,18.669,18.657,20.0]
[1688264872446,22.659,18.669,18.66,22.668]
[1688264872651,22.659,18.669,18.661,20.0]